fUSD/lending_fUSD_20250217
["ID","MTS","AMOUNT","RATE_DAILY","PERIOD"]
[353361983,1739796644792,-500.0,0.00013698,2]
[353361984,1739796645073,-568.67,0.00013698,2]
[353361985,1739796645098,-500.0,0.00013698,2]
[353361986,1739796645108,-500.0,0.00013698,2]
[353361987,1739796645119,-500.0,0.00013698,2]
[353361988,1739796645130,-500.0,0.00013698,2]
[353361989,1739796645140,-595.88086342,0.00013698,2]
[353361990,1739796645149,-500.0,0.00013698,2]
[353361991,1739796645159,-500.0,0.00013698,2]
[353361992,1739796645168,-500.0,0.00013698,2]
[353361993,1739796645177,-500.0,0.00013698,2]
[353361994,1739796645187,-500.0,0.00013698,2]
[353361995,1739796645195,-500.0,0.00013698,2]
[353361996,1739796645204,-500.0,0.00013698,2]
[353361997,1739796645214,-538.32,0.00013698,2]
[353361998,1739796645224,-525.01138611,0.00013698,2]
[353361999,1739796645233,-500.0,0.00013698,2]
[353362000,1739796645242,-504.52476255,0.00013698,2]
[353362001,1739796645252,-500.77,0.00013698,2]
[353362002,1739796645261,-500.0,0.00013698,2]
[353362003,1739796645270,-500.0,0.00013698,2]
[353362004,1739796645279,-1200.0,0.00013698,2]
[353362005,1739796645289,-500.0,0.00013698,2]
[353362006,1739796645299,-1012.54,0.00013698,2]
[353362007,1739796645314,-500.0,0.00013698,2]
[353362008,1739796645324,-500.0,0.00013698,2]
[353362009,1739796645333,-1512.811,0.00013698,2]
[353362010,1739796645343,-500.0,0.00013698,2]
[353362011,1739796645355,-500.0,0.00013698,2]
[353362012,1739796645364,-500.0,0.00013698,2]
[353362013,1739796645374,-769.62,0.00013698,2]
[353362014,1739796645387,-500.0,0.00013698,2]
[353362015,1739796645397,-608.31,0.00013698,2]
[353362016,1739796645406,-500.0,0.00013698,2]
[353362017,1739796645417,-1059.73,0.00013698,2]
[353362018,1739796645426,-500.0,0.00013698,2]
[353362019,1739796645435,-500.0,0.00013698,2]
[353362020,1739796645445,-500.0,0.00013698,2]
[353362021,1739796645454,-504.92246659,0.00013698,2]
[353362022,1739796645463,-500.0,0.00013698,2]
[353362023,1739796645474,-540.78549064,0.00013698,2]
[353362024,1739796645483,-500.0,0.00013698,2]
[353362025,1739796645493,-500.0,0.00013698,2]
[353362026,1739796645502,-500.0,0.00013698,2]
[353362027,1739796645511,-503.00059111,0.00013698,2]
[353362028,1739796645521,-769.25,0.00013698,2]
[353362029,1739796645531,-500.0,0.00013698,2]
[353362030,1739796645540,-500.0,0.00013698,2]
[353362031,1739796645549,-500.0,0.00013698,2]
[353362032,1739796645559,-500.0,0.00013698,2]
[353362033,1739796645568,-500.0,0.00013698,2]
[353362034,1739796645578,-512.69,0.00013698,2]
[353362035,1739796645587,-1102.81,0.00013698,2]
[353362036,1739796645597,-500.0,0.00013698,2]
[353362037,1739796645606,-1104.24,0.00013698,2]
[353362038,1739796645615,-500.0,0.00013698,2]
[353362039,1739796645625,-500.0,0.00013698,2]
[353362040,1739796645634,-685.51,0.00013698,2]
[353362041,1739796645644,-500.0,0.00013698,2]
[353362042,1739796645653,-685.11,0.00013698,2]
[353362043,1739796645663,-500.0,0.00013698,2]
[353362044,1739796645672,-500.0,0.00013698,2]
[353362045,1739796645682,-500.0,0.00013698,2]
[353362047,1739796645691,-1030.43,0.00013698,2]
[353362049,1739796645701,-897.08,0.00013698,2]
[353362050,1739796645710,-500.0,0.00013698,2]
[353362052,1739796645719,-501.85053561,0.00013698,2]
[353362054,1739796645729,-467.29826232,0.00013698,2]
[353362057,1739796645738,-500.0,0.00013698,2]
[353362059,1739796645748,-500.0,0.00013698,2]
[353362060,1739796645757,-500.0,0.00013698,2]
[353362062,1739796645767,-1083.0,0.00013698,2]
[353362064,1739796645776,-500.0,0.00013698,2]
[353362066,1739796645785,-500.0,0.00013698,2]
[353362068,1739796645795,-500.0,0.00013698,2]
[353362070,1739796645804,-500.0,0.00013698,2]
[353362072,1739796645813,-500.0,0.00013698,2]
[353362074,1739796645822,-500.0,0.00013698,2]
[353362076,1739796645831,-500.0,0.00013698,2]
[353362078,1739796645840,-510.55814512,0.00013698,2]
[353362080,1739796645850,-500.0,0.00013698,2]
[353362081,1739796645859,-500.0,0.00013698,2]
[353362083,1739796645868,-500.0,0.00013698,2]
[353362085,1739796645877,-500.0,0.00013698,2]
[353362087,1739796645887,-519.81,0.00013698,2]
[353362089,1739796645896,-500.0,0.00013698,2]
[353362091,1739796645905,-500.0,0.00013698,2]
[353362093,1739796645914,-1355.55,0.00013698,2]
[353362094,1739796645923,-500.0,0.00013698,2]
[353362096,1739796645932,-666.66,0.00013698,2]
[353362098,1739796645942,-1372.49,0.00013698,2]
[353362100,1739796645951,-500.0,0.00013698,2]
[353362102,1739796645960,-754.69,0.00013698,2]
[353362104,1739796645969,-176.99065412,0.00013698,2]
[353362106,1739796645979,-500.0,0.00013698,2]
[353362108,1739796645987,-500.0,0.00013698,2]
[353362110,1739796645997,-669.94,0.00013698,2]
[353362112,1739796646006,-957.69,0.00013698,2]
[353362114,1739796646015,-220.93389109,0.00013698,2]
[353362116,1739796646025,-500.0,0.00013698,2]
[353362118,1739796646035,-500.0,0.00013698,2]
[353362120,1739796646045,-500.0,0.00013698,2]
[353362122,1739796646055,-500.0,0.00013698,2]
[353362124,1739796646065,-501.85674177,0.00013698,2]
[353362126,1739796646074,-500.0,0.00013698,2]
[353362128,1739796646083,-500.0,0.00013698,2]
[353362130,1739796646094,-500.0,0.00013698,2]
[353362132,1739796646103,-500.0,0.00013698,2]
[353362133,1739796646115,-755.74,0.00013698,2]
[353362135,1739796646124,-1504.88,0.00013698,2]
[353362137,1739796646134,-500.0,0.00013698,2]
[353362139,1739796646143,-500.0,0.00013698,2]
[353362141,1739796646153,-500.0,0.00013698,2]
[353362143,1739796646163,-356.16,0.00013698,2]
[353362145,1739796646172,-500.0,0.00013698,2]
[353362147,1739796646181,-264.31057295,0.00013698,2]
[353362201,1739796646694,-39373.06710816,0.00013,3]
[353362203,1739796646704,-235.68942705,0.00013698,2]
[353362205,1739796646715,-500.0,0.00013698,2]
[353362207,1739796646724,-500.0,0.00013698,2]
[353362209,1739796646734,-500.0,0.00013698,2]
[353362211,1739796646743,-500.0,0.00013698,2]
[353362213,1739796646752,-500.0,0.00013698,2]
[353362215,1739796646761,-500.0,0.00013698,2]
[353362217,1739796646771,-500.0,0.00013698,2]
[353362219,1739796646780,-500.0,0.00013698,2]
[353362220,1739796646790,-1078.55,0.00013698,2]
[353362222,1739796646799,-504.66020188,0.00013698,2]
[353362224,1739796646808,-500.0,0.00013698,2]
[353362226,1739796646817,-842.68,0.00013698,2]
[353362228,1739796646826,-500.0,0.00013698,2]
[353362230,1739796646836,-891.16,0.00013698,2]
[353362232,1739796646845,-1075.12,0.00013698,2]
[353362234,1739796646855,-1390.53,0.00013698,2]
[353362236,1739796646864,-759.64,0.00013698,2]
[353362238,1739796646874,-500.0,0.00013698,2]
[353362240,1739796646883,-1177.16,0.00013698,2]
[353362242,1739796646892,-970.36,0.00013698,2]
[353362244,1739796646901,-500.0,0.00013698,2]
[353362246,1739796646909,-843.36,0.00013698,2]
[353362248,1739796646919,-1458.82,0.00013698,2]
[353362250,1739796646928,-500.0,0.00013698,2]
[353362251,1739796646937,-500.0,0.00013698,2]
[353362252,1739796646947,-713.21,0.00013698,2]
[353362254,1739796646956,-732.38,0.00013698,2]
[353362256,1739796646966,-500.0,0.00013698,2]
[353362258,1739796646975,-500.0,0.00013698,2]
[353362260,1739796646984,-544.52,0.00013698,2]
[353362262,1739796646994,-500.0,0.00013698,2]
[353362264,1739796647003,-500.0,0.00013698,2]
[353362266,1739796647012,-785.07,0.00013698,2]
[353362268,1739796647022,-904.93,0.00013698,2]
[353362270,1739796647032,-533.6,0.00013698,2]
[353362272,1739796647041,-1418.09,0.00013698,2]
[353362274,1739796647051,-533.6,0.00013698,2]
[353362276,1739796647060,-533.6,0.00013698,2]
[353362278,1739796647070,-533.6,0.00013698,2]
[353362280,1739796647080,-533.6,0.00013698,2]
[353362282,1739796647089,-533.6,0.00013698,2]
[353362284,1739796647098,-533.6,0.00013698,2]
[353362286,1739796647108,-533.6,0.00013698,2]
[353362288,1739796647117,-533.6,0.00013698,2]
[353362290,1739796647126,-533.6,0.00013698,2]
[353362292,1739796647135,-784.87,0.00013698,2]
[353362294,1739796647144,-1622.16,0.00013698,2]
[353362296,1739796647153,-944.38,0.00013698,2]
[353362298,1739796647162,-502.49,0.00013698,2]
[353362300,1739796647171,-774.04,0.00013698,2]
[353362302,1739796647181,-500.0,0.00013698,2]
[353362304,1739796647191,-500.0,0.00013698,2]
[353362306,1739796647200,-500.0,0.00013698,2]
[353362308,1739796647210,-1085.72,0.00013698,2]
[353362310,1739796647220,-500.0,0.00013698,2]
[353362312,1739796647230,-1366.03,0.00013698,2]
[353362314,1739796647240,-600.04,0.00013698,2]
[353362316,1739796647249,-500.0,0.00013698,2]
[353362318,1739796647258,-555.33698801,0.00013698,2]
[353362320,1739796647267,-500.0,0.00013698,2]
[353362322,1739796647276,-500.0,0.00013698,2]
[353362324,1739796647285,-692.83,0.00013698,2]
[353362326,1739796647294,-1092.79,0.00013698,2]
[353362328,1739796647306,-654.5,0.00013698,2]
[353362330,1739796647316,-500.0,0.00013698,2]
[353362332,1739796647326,-1147.69,0.00013698,2]
[353362334,1739796647335,-575.15,0.00013698,2]
[353362336,1739796647345,-503.17739028,0.00013698,2]
[353362338,1739796647354,-620.63,0.00013698,2]
[353362340,1739796647364,-500.0,0.00013698,2]
[353362342,1739796647374,-500.0,0.00013698,2]
[353362344,1739796647383,-500.0,0.00013698,2]
[353362345,1739796647393,-1360.42,0.00013698,2]
[353362347,1739796647403,-500.0,0.00013698,2]
[353362349,1739796647413,-500.0,0.00013698,2]
[353362351,1739796647423,-500.0,0.00013698,2]
[353362353,1739796647432,-847.83,0.00013698,2]
[353362355,1739796647442,-264.75346734,0.00013698,2]
[353362357,1739796647454,-455.21,0.00013698,2]
[353362359,1739796647464,-942.39,0.00013698,2]
[353362362,1739796647474,-1311.44,0.00013698,2]
[353362364,1739796647484,-1023.35,0.00013698,2]
[353362366,1739796647494,-500.0,0.00013698,2]
[353362368,1739796647504,-755.64,0.00013698,2]
[353362370,1739796647514,-500.0,0.00013698,2]
[353362372,1739796647524,-569.0,0.00013698,2]
[353362374,1739796647534,-500.0,0.00013698,2]
[353362376,1739796647543,-500.0,0.00013698,2]
[353362378,1739796647552,-500.0,0.00013698,2]
[353362380,1739796647562,-434.71628459,0.00013698,2]
[353362381,1739796647572,-1420.97,0.00013698,2]
[353362382,1739796647581,-757.95,0.00013698,2]
[353362383,1739796647591,-757.95,0.00013698,2]
[353362384,1739796647601,-757.95,0.00013698,2]
[353362385,1739796647611,-757.95,0.00013698,2]
[353362386,1739796647622,-500.0,0.00013698,2]
[353362387,1739796647632,-757.95,0.00013698,2]
[353362388,1739796647642,-757.95,0.00013698,2]
[353362389,1739796647652,-757.95,0.00013698,2]
[353362390,1739796647661,-757.95,0.00013698,2]
[353362391,1739796647671,-757.95,0.00013698,2]
[353362392,1739796647681,-757.95,0.00013698,2]
[353362394,1739796647690,-500.0,0.00013698,2]
[353362395,1739796647700,-1414.53,0.00013698,2]
[353362397,1739796647710,-507.93164863,0.00013698,2]
[353362399,1739796647720,-573.11505188,0.00013698,2]
[353362401,1739796647732,-500.0,0.00013698,2]
[353362403,1739796647741,-500.0,0.00013698,2]
[353362405,1739796647751,-834.37,0.00013698,2]
[353362407,1739796647760,-500.0,0.00013698,2]
[353362409,1739796647770,-566.73,0.00013698,2]
[353362411,1739796647779,-852.75,0.00013698,2]
[353362413,1739796647789,-500.0,0.00013698,2]
[353362415,1739796647798,-521.51,0.00013698,2]
[353362417,1739796647807,-1073.39,0.00013698,2]
[353362419,1739796647816,-500.0,0.00013698,2]
[353362421,1739796647825,-500.0,0.00013698,2]
[353362423,1739796647835,-1280.95,0.00013698,2]
[353362425,1739796647844,-500.0,0.00013698,2]
[353362427,1739796647853,-596.18,0.00013698,2]
[353362429,1739796647862,-500.0,0.00013698,2]
[353362431,1739796647871,-500.0,0.00013698,2]
[353362433,1739796647881,-500.0,0.00013698,2]
[353362435,1739796647890,-858.54,0.00013698,2]
[353362437,1739796647899,-500.0,0.00013698,2]
[353362439,1739796647909,-500.0,0.00013698,2]
[353362441,1739796647919,-500.0,0.00013698,2]
[353362443,1739796647928,-500.0,0.00013698,2]
[353362445,1739796647937,-500.0,0.00013698,2]
[353362447,1739796647946,-500.0,0.00013698,2]
[353362449,1739796647955,-500.0,0.00013698,2]
[353362451,1739796647966,-500.0,0.00013698,2]
[353362452,1739796647975,-500.0,0.00013698,2]
[353362455,1739796647985,-500.0,0.00013698,2]
[353362456,1739796647994,-1070.23,0.00013698,2]
[353362459,1739796648004,-1315.72,0.00013698,2]
[353362461,1739796648014,-761.19,0.00013698,2]
[353362463,1739796648023,-500.0,0.00013698,2]
[353362465,1739796648032,-718.97,0.00013698,2]
[353362466,1739796648042,-500.0,0.00013698,2]
[353362468,1739796648051,-239.18168799,0.00013698,2]
[353362470,1739796648061,-975.01,0.00013698,2]
[353362472,1739796648070,-500.0,0.00013698,2]
[353362475,1739796648079,-500.0,0.00013698,2]
[353362476,1739796648088,-814.07,0.00013698,2]
[353362478,1739796648098,-500.0,0.00013698,2]
[353362481,1739796648107,-500.0,0.00013698,2]
[353362483,1739796648116,-931.27,0.00013698,2]
[353362484,1739796648126,-1412.2,0.00013698,2]
[353362487,1739796648135,-1587.29,0.00013698,2]
[353362489,1739796648144,-1639.8,0.00013698,2]
[353362490,1739796648154,-580.1,0.00013698,2]
[353362493,1739796648163,-500.0,0.00013698,2]
[353362494,1739796648172,-616.63,0.00013698,2]
[353362496,1739796648182,-728.07,0.00013698,2]
[353362498,1739796648192,-995.12,0.00013698,2]
[353362501,1739796648201,-846.29,0.00013698,2]
[353362503,1739796648211,-801.8,0.00013698,2]
[353362505,1739796648221,-1373.48,0.00013698,2]
[353362506,1739796648231,-500.0,0.00013698,2]
[353362508,1739796648241,-500.0,0.00013698,2]
[353362511,1739796648251,-1505.57,0.00013698,2]
[353362512,1739796648261,-1575.4,0.00013698,2]
[353362515,1739796648270,-638.71,0.00013698,2]
[353362516,1739796648280,-1562.08,0.00013698,2]
[353362519,1739796648290,-500.0,0.00013698,2]
[353362521,1739796648301,-500.0,0.00013698,2]
[353362523,1739796648313,-500.0,0.00013698,2]
[353362525,1739796648323,-1468.8,0.00013698,2]
[353362526,1739796648333,-1061.72,0.00013698,2]
[353362528,1739796648343,-674.61,0.00013698,2]
[353362530,1739796648353,-556.78242738,0.00013698,2]
[353362533,1739796648363,-500.0,0.00013698,2]
[353362535,1739796648374,-1196.04,0.00013698,2]
[353362537,1739796648384,-1036.71,0.00013698,2]
[353362539,1739796648394,-500.0,0.00013698,2]
[353362541,1739796648403,-500.0,0.00013698,2]
[353362543,1739796648413,-500.0,0.00013698,2]
[353362545,1739796648423,-500.0,0.00013698,2]
[353362570,1739796648677,-1635.63,0.00013698,2]
[353362571,1739796648688,-500.0,0.00013698,2]
[353362574,1739796648698,-1563.28,0.00013698,2]
[353362576,1739796648709,-1471.28,0.00013698,2]
[353362577,1739796648719,-500.0,0.00013698,2]
[353362579,1739796648730,-971.49,0.00013698,2]
[353362582,1739796648741,-500.0,0.00013698,2]
[353362584,1739796648751,-500.0,0.00013698,2]
[353362586,1739796648762,-850.29,0.00013698,2]
[353362587,1739796648771,-599.96,0.00013698,2]
[353362590,1739796648782,-1009.21,0.00013698,2]
[353362592,1739796648792,-508.96393282,0.00013698,2]
[353362594,1739796648801,-956.66,0.00013698,2]
[353362595,1739796648811,-500.0,0.00013698,2]
[353362597,1739796648821,-500.98703277,0.00013698,2]
[353362599,1739796648831,-500.0,0.00013698,2]
[353362601,1739796648840,-980.72,0.00013698,2]
[353362604,1739796648850,-1570.87,0.00013698,2]
[353362606,1739796648859,-787.52,0.00013698,2]
[353362608,1739796648869,-500.52715567,0.00013698,2]
[353362610,1739796648879,-1142.24,0.00013698,2]
[353362612,1739796648889,-500.0,0.00013698,2]
[353362613,1739796648899,-500.0,0.00013698,2]
[353362615,1739796648908,-624.09506888,0.00013698,2]
[353362617,1739796648918,-500.0,0.00013698,2]
[353362619,1739796648928,-500.0,0.00013698,2]
[353362621,1739796648938,-547.2,0.00013698,2]
[353362623,1739796648948,-1484.47,0.00013698,2]
[353362625,1739796648958,-500.0,0.00013698,2]
[353362627,1739796648968,-500.0,0.00013698,2]
[353362629,1739796648979,-500.0,0.00013698,2]
[353362631,1739796648990,-503.75885644,0.00013698,2]
[353362633,1739796648999,-509.02795867,0.00013698,2]
[353362635,1739796649011,-500.0,0.00013698,2]
[353362637,1739796649022,-500.0,0.00013698,2]
[353362639,1739796649033,-500.0,0.00013698,2]
[353362641,1739796649042,-500.0,0.00013698,2]
[353362643,1739796649052,-1908.71,0.00013698,2]
[353362645,1739796649063,-1469.74,0.00013698,2]
[353362647,1739796649073,-503.78176183,0.00013698,2]
[353362649,1739796649082,-500.0,0.00013698,2]
[353362651,1739796649091,-500.0,0.00013698,2]
[353362653,1739796649102,-1002.85,0.00013698,2]
[353362655,1739796649112,-500.0,0.00013698,2]
[353362656,1739796649122,-711.74,0.00013698,2]
[353362658,1739796649133,-696.15,0.00013698,2]
[353362659,1739796649144,-500.0,0.00013698,2]
[353362660,1739796649155,-1554.87,0.00013698,2]
[353362661,1739796649165,-500.0,0.00013698,2]
[353362662,1739796649176,-425.13733762,0.00013698,2]
[353362663,1739796649186,-1121.94,0.00013698,2]
[353362665,1739796649196,-535.46,0.00013698,2]
[353362667,1739796649207,-2254.81,0.00013698,2]
[353362668,1739796649218,-500.0,0.00013698,2]
[353362669,1739796649228,-500.0,0.00013698,2]
[353362671,1739796649238,-503.69994877,0.00013698,2]
[353362673,1739796649247,-856.49,0.00013698,2]
[353362675,1739796649259,-500.0,0.00013698,2]
[353362676,1739796649270,-1209.95,0.00013698,2]
[353362678,1739796649280,-788.87,0.00013698,2]
[353362680,1739796649290,-500.0,0.00013698,2]
[353362682,1739796649301,-500.0,0.00013698,2]
[353362684,1739796649313,-792.08,0.00013698,2]
[353362686,1739796649324,-2325.06,0.00013698,2]
[353362687,1739796649333,-809.14,0.00013698,2]
[353362688,1739796649343,-2284.75,0.00013698,2]
[353362689,1739796649354,-500.0,0.00013698,2]
[353362690,1739796649364,-500.0,0.00013698,2]
[353362691,1739796649374,-1006.77,0.00013698,2]
[353362692,1739796649385,-501.12125678,0.00013698,2]
[353362693,1739796649395,-500.0,0.00013698,2]
[353362694,1739796649404,-728.84,0.00013698,2]
[353362695,1739796649415,-500.0,0.00013698,2]
[353362696,1739796649425,-500.0,0.00013698,2]
[353362697,1739796649435,-522.69,0.00013698,2]
[353362698,1739796649446,-500.0,0.00013698,2]
[353362699,1739796649456,-2398.87,0.00013698,2]
[353362700,1739796649467,-503.94229818,0.00013698,2]
[353362701,1739796649478,-500.0,0.00013698,2]
[353362702,1739796649488,-500.0,0.00013698,2]
[353362703,1739796649499,-1752.04,0.00013698,2]
[353362704,1739796649510,-500.0,0.00013698,2]
[353362705,1739796649521,-500.0,0.00013698,2]
[353362706,1739796649532,-500.0,0.00013698,2]
[353362707,1739796649542,-500.0,0.00013698,2]
[353362708,1739796649552,-1740.1,0.00013698,2]
[353362709,1739796649563,-936.96,0.00013698,2]
[353362710,1739796649573,-2083.97,0.00013698,2]
[353362711,1739796649583,-500.0,0.00013698,2]
[353362712,1739796649593,-500.0,0.00013698,2]
[353362713,1739796649602,-1640.91,0.00013698,2]
[353362714,1739796649612,-2574.65,0.00013698,2]
[353362715,1739796649622,-699.85,0.00013698,2]
[353362716,1739796649633,-1654.403728,0.00013698,2]
[353362717,1739796649643,-900.22,0.00013698,2]
[353362718,1739796649653,-500.0,0.00013698,2]
[353362719,1739796649663,-900.22,0.00013698,2]
[353362720,1739796649674,-500.0,0.00013698,2]
[353362721,1739796649685,-502.91615826,0.00013698,2]
[353362722,1739796649695,-500.0,0.00013698,2]
[353362723,1739796649706,-500.0,0.00013698,2]
[353362724,1739796649716,-855.95,0.00013698,2]
[353362725,1739796649727,-2485.72,0.00013698,2]
[353362726,1739796649738,-500.0,0.00013698,2]
[353362727,1739796649748,-1968.25,0.00013698,2]
[353362728,1739796649759,-727.13,0.00013698,2]
[353362729,1739796649770,-500.0,0.00013698,2]
[353362730,1739796649780,-1503.45,0.00013698,2]
[353362731,1739796649790,-500.0,0.00013698,2]
[353362732,1739796649799,-1210.83,0.00013698,2]
[353362733,1739796649808,-1210.83,0.00013698,2]
[353362734,1739796649820,-155.776718,0.00013698,2]
[353362735,1739796649830,-500.0,0.00013698,2]
[353362736,1739796649842,-4521.29,0.00013698,2]
[353362737,1739796649852,-475.18857891,0.00013698,2]
[353362738,1739796649862,-1280.15,0.00013698,2]
[353362739,1739796649872,-500.95894918,0.00013698,2]
[353362740,1739796649881,-500.0,0.00013698,2]
[353362741,1739796649892,-500.0,0.00013698,2]
[353362742,1739796649901,-500.0,0.00013698,2]
[353362743,1739796649911,-2895.26,0.00013698,2]
[353362744,1739796649921,-500.0,0.00013698,2]
[353362745,1739796649931,-500.0,0.00013698,2]
[353362746,1739796649941,-500.0,0.00013698,2]
[353362747,1739796649950,-1085.4,0.00013698,2]
[353362748,1739796649960,-156.273021,0.00013698,2]
[353362749,1739796649970,-2450.23,0.00013698,2]
[353362750,1739796649980,-500.0,0.00013698,2]
[353362751,1739796649989,-1337.4,0.00013698,2]
[353362752,1739796649999,-501.04237704,0.00013698,2]
[353362753,1739796650009,-1212.27,0.00013698,2]
[353362754,1739796650019,-500.0,0.00013698,2]
[353362755,1739796650028,-770.88,0.00013698,2]
[353362756,1739796650038,-500.0,0.00013698,2]
[353362757,1739796650048,-7247.11,0.00013698,2]
[353362758,1739796650057,-709.08,0.00013698,2]
[353362759,1739796650067,-500.0,0.00013698,2]
[353362760,1739796650076,-500.0,0.00013698,2]
[353362761,1739796650086,-3666.72,0.00013698,2]
[353362762,1739796650095,-527.58053479,0.00013698,2]
[353362763,1739796650105,-500.0,0.00013698,2]
[353362764,1739796650114,-1240.83,0.00013698,2]
[353362765,1739796650124,-2167.74,0.00013698,2]
[353362766,1739796650133,-500.0,0.00013698,2]
[353362767,1739796650143,-523.62888743,0.00013698,2]
[353362768,1739796650154,-3135.89,0.00013698,2]
[353362769,1739796650163,-500.0,0.00013698,2]
[353362770,1739796650173,-500.0,0.00013698,2]
[353362771,1739796650183,-500.0,0.00013698,2]
[353362772,1739796650192,-1508.31,0.00013698,2]
[353362773,1739796650202,-500.0,0.00013698,2]
[353362774,1739796650211,-500.0,0.00013698,2]
[353362775,1739796650221,-505.38850442,0.00013698,2]
[353362776,1739796650231,-500.0,0.00013698,2]
[353362777,1739796650241,-1750.24,0.00013698,2]
[353362778,1739796650250,-1582.98,0.00013698,2]
[353362779,1739796650259,-1862.03,0.00013698,2]
[353362780,1739796650269,-671.93,0.00013698,2]
[353362781,1739796650278,-629.79,0.00013698,2]
[353362782,1739796650287,-503.81599998,0.00013698,2]
[353362783,1739796650297,-500.0,0.00013698,2]
[353362784,1739796650309,-1935.84,0.00013698,2]
[353362785,1739796650319,-500.0,0.00013698,2]
[353362786,1739796650328,-500.0,0.00013698,2]
[353362787,1739796650339,-500.0,0.00013698,2]
[353362788,1739796650350,-500.0,0.00013698,2]
[353362789,1739796650360,-1522.106712,0.00013698,2]
[353362790,1739796650369,-4123.63,0.00013698,2]
[353362791,1739796650378,-2413.88,0.00013698,2]
[353362792,1739796650387,-1815.81,0.00013698,2]
[353362793,1739796650398,-885.31,0.00013698,2]
[353362794,1739796650407,-500.0,0.00013698,2]
[353362795,1739796650416,-500.0,0.00013698,2]
[353362796,1739796650425,-500.0,0.00013698,2]
[353362797,1739796650435,-500.0,0.00013698,2]
[353362798,1739796650444,-500.0,0.00013698,2]
[353362799,1739796650453,-500.0,0.00013698,2]
[353362800,1739796650463,-500.0,0.00013698,2]
[353362801,1739796650472,-500.0,0.00013698,2]
[353362802,1739796650482,-3768.69,0.00013698,2]
[353362803,1739796650491,-500.0,0.00013698,2]
[353362804,1739796650501,-880.08,0.00013698,2]
[353362805,1739796650510,-1821.75,0.00013698,2]
[353362806,1739796650519,-500.0,0.00013698,2]
[353362807,1739796650529,-500.0,0.00013698,2]
[353362808,1739796650539,-582.33,0.00013698,2]
[353362809,1739796650548,-500.0,0.00013698,2]
[353362810,1739796650557,-502.35,0.00013698,2]
[353362811,1739796650566,-1811.36,0.00013698,2]
[353362812,1739796650575,-500.0,0.00013698,2]
[353362813,1739796650584,-722.29,0.00013698,2]
[353362814,1739796650593,-500.0,0.00013698,2]
[353362815,1739796650602,-2117.69,0.00013698,2]
[353362816,1739796650611,-2550.5,0.00013698,2]
[353362817,1739796650620,-500.0,0.00013698,2]
[353362818,1739796650630,-500.0,0.00013698,2]
[353362819,1739796650639,-500.0,0.00013698,2]
[353362820,1739796650649,-1403.77,0.00013698,2]
[353362821,1739796650658,-500.0,0.00013698,2]
[353362822,1739796650667,-785.78,0.00013698,2]
[353362823,1739796650676,-2034.55,0.00013698,2]
[353362824,1739796650685,-500.0,0.00013698,2]
[353362825,1739796650694,-3046.86,0.00013698,2]